fUST/lending_fUST_20240112
["ID","MTS","AMOUNT","RATE_DAILY","PERIOD"]
[311326396,1705063841806,-500.0,0.00022191,2]
[311326398,1705063841815,-500.0,0.00022191,2]
[311326400,1705063841824,-500.0,0.00022191,2]
[311326402,1705063841833,-242.60610889,0.00022191,2]
[311326404,1705063841842,-1807.55,0.00022191,2]
[311326406,1705063841851,-500.0,0.00022191,2]
[311326408,1705063841859,-621.30815184,0.00022191,2]
[311326410,1705063841868,-500.0,0.00022191,2]
[311326412,1705063841877,-570.24,0.00022191,2]
[311326414,1705063841886,-500.0,0.00022191,2]
[311326416,1705063841894,-500.0,0.00022191,2]
[311326418,1705063841903,-500.0,0.00022191,2]
[311326420,1705063841913,-500.0,0.00022191,2]
[311326422,1705063841922,-500.0,0.00022191,2]
[311326424,1705063841931,-2475.61,0.00022191,2]
[311326426,1705063841941,-506.48146698,0.00022191,2]
[311326428,1705063841950,-500.0,0.00022191,2]
[311326430,1705063841960,-7451.88,0.00022191,2]
[311326432,1705063841969,-500.0,0.00022191,2]
[311326434,1705063841977,-500.0,0.00022191,2]
[311326436,1705063841987,-500.0,0.00022191,2]
[311326438,1705063841996,-500.0,0.00022191,2]
[311326440,1705063842005,-1486.41,0.00022191,2]
[311326442,1705063842014,-500.0,0.00022191,2]
[311326444,1705063842024,-500.0,0.00022191,2]
[311326446,1705063842034,-637.16,0.00022191,2]
[311326448,1705063842044,-540.71,0.00022191,2]
[311326450,1705063842053,-500.0,0.00022191,2]
[311326452,1705063842062,-500.0,0.00022191,2]
[311326454,1705063842071,-1000.38,0.00022191,2]
[311326456,1705063842080,-166.666666,0.00022431,2]
[311326458,1705063842089,-500.0,0.00022465,2]
[311326460,1705063842099,-561.99301516,0.00022465,2]
[311326462,1705063842108,-500.0,0.00022465,2]
[311326464,1705063842120,-500.0,0.00022465,2]
[311326466,1705063842130,-500.0,0.00022465,2]
[311326468,1705063842139,-195.96704762,0.00022465,2]
[311326470,1705063842148,-534.11,0.00022465,2]
[311326472,1705063842157,-500.0,0.00022465,2]
[311326474,1705063842169,-500.0,0.00022465,2]
[311326476,1705063842178,-398.43963782,0.00022465,2]
[311326478,1705063842188,-500.0,0.00022465,2]
[311326480,1705063842197,-500.0,0.00022465,2]
[311326482,1705063842208,-620.78,0.00022465,2]
[311326484,1705063842217,-500.0,0.00022465,2]
[311326486,1705063842227,-500.0,0.00022465,2]
[311326488,1705063842236,-500.0,0.00022465,2]
[311326490,1705063842246,-500.0,0.00022465,2]
[311326492,1705063842256,-836.47,0.00022465,2]
[311326495,1705063842266,-500.0,0.00022465,2]
[311326497,1705063842276,-364.97942825,0.00022465,2]
[311326499,1705063842285,-500.0,0.00022465,2]
[311326501,1705063842294,-500.0,0.00022465,2]
[311326503,1705063842304,-500.0,0.00022465,2]
[311326505,1705063842314,-500.0,0.00022465,2]
[311326507,1705063842324,-500.0,0.00022465,2]
[311326509,1705063842333,-500.0,0.00022465,2]
[311326511,1705063842343,-507.72720742,0.00022465,2]
[311326513,1705063842352,-500.0,0.00022465,2]
[311326515,1705063842360,-500.0,0.00022465,2]
[311326516,1705063842370,-1691.91,0.00022465,2]
[311326519,1705063842379,-500.0,0.00022465,2]
[311326521,1705063842388,-500.0,0.00022465,2]
[311326522,1705063842397,-506.17830102,0.00022465,2]
[311326525,1705063842407,-500.0,0.00022465,2]
[311326527,1705063842416,-500.0,0.00022465,2]
[311326529,1705063842425,-8652.42,0.00022465,2]
[311326531,1705063842434,-4366.37,0.00022465,2]
[311326533,1705063842444,-500.0,0.00022465,2]
[311326534,1705063842453,-500.0,0.00022465,2]
[311326536,1705063842463,-500.0,0.00022465,2]
[311326538,1705063842473,-1807.55,0.00022465,2]
[311326540,1705063842481,-500.0,0.00022465,2]
[311326542,1705063842491,-500.0,0.00022465,2]
[311326545,1705063842500,-570.24,0.00022465,2]
[311326547,1705063842510,-502.88294829,0.00022465,2]
[311326549,1705063842519,-500.0,0.00022465,2]
[311326550,1705063842528,-500.0,0.00022465,2]
[311326552,1705063842538,-500.0,0.00022465,2]
[311326555,1705063842547,-626.24993028,0.00022465,2]
[311326557,1705063842557,-2475.61,0.00022465,2]
[311326558,1705063842566,-7451.88,0.00022465,2]
[311326560,1705063842575,-500.0,0.00022465,2]
[311326563,1705063842585,-642.81491493,0.00022465,2]
[311326565,1705063842595,-500.0,0.00022465,2]
[311326567,1705063842604,-500.0,0.00022465,2]
[311326569,1705063842613,-1486.41,0.00022465,2]
[311326571,1705063842623,-500.0,0.00022465,2]
[311326572,1705063842632,-637.16,0.00022465,2]
[311326574,1705063842642,-540.71,0.00022465,2]
[311326576,1705063842651,-500.0,0.00022465,2]
[311326579,1705063842662,-500.0,0.00022465,2]
[311326581,1705063842671,-1000.38,0.00022465,2]
[311326583,1705063842680,-500.0,0.00022739,2]
[311326585,1705063842689,-645.29078378,0.00022739,2]
[311326587,1705063842699,-500.0,0.00022739,2]
[311326589,1705063842708,-384.0165987,0.00022739,2]
[311326591,1705063842717,-534.11,0.00022739,2]
[311326593,1705063842726,-500.0,0.00022739,2]
[311326594,1705063842735,-421.40104084,0.00022739,2]
[311326596,1705063842744,-535.83096577,0.00022739,2]
[311326598,1705063842754,-500.0,0.00022739,2]
[311326600,1705063842763,-517.95883023,0.00022739,2]
[311326603,1705063842772,-500.0,0.00022739,2]
[311326605,1705063842781,-836.47,0.00022739,2]
[311326607,1705063842790,-500.0,0.00022739,2]
[311326608,1705063842800,-500.0,0.00022739,2]
[311326610,1705063842809,-500.0,0.00022739,2]
[311326612,1705063842818,-523.10019394,0.00022739,2]
[311326614,1705063842827,-500.0,0.00022739,2]
[311326617,1705063842836,-500.0,0.00022739,2]
[311326619,1705063842846,-500.0,0.00022739,2]
[311326620,1705063842855,-500.0,0.00022739,2]
[311326622,1705063842864,-500.0,0.00022739,2]
[311326625,1705063842873,-1691.91,0.00022739,2]
[311326627,1705063842882,-500.0,0.00022739,2]
[311326628,1705063842891,-500.0,0.00022739,2]
[311326630,1705063842900,-500.0,0.00022739,2]
[311326632,1705063842909,-500.0,0.00022739,2]
[311326634,1705063842918,-8652.42,0.00022739,2]
[311326636,1705063842928,-4366.37,0.00022739,2]
[311326638,1705063842937,-500.0,0.00022739,2]
[311326640,1705063842947,-503.33954714,0.00022739,2]
[311326642,1705063842956,-500.0,0.00022739,2]
[311326644,1705063842966,-1807.55,0.00022739,2]
[311326646,1705063842975,-500.0,0.00022739,2]
[311326648,1705063842985,-500.0,0.00022739,2]
[311326650,1705063842995,-570.24,0.00022739,2]
[311326652,1705063843004,-500.0,0.00022739,2]
[311326654,1705063843013,-500.0,0.00022739,2]
[311326657,1705063843023,-500.0,0.00022739,2]
[311326659,1705063843032,-2475.61,0.00022739,2]
[311326660,1705063843041,-7451.88,0.00022739,2]
[311326663,1705063843050,-500.0,0.00022739,2]
[311326664,1705063843059,-500.0,0.00022739,2]
[311326666,1705063843069,-500.0,0.00022739,2]
[311326668,1705063843079,-1486.41,0.00022739,2]
[311326671,1705063843088,-206.31700735,0.00022739,2]
[311326674,1705063843098,-637.16,0.00022739,2]
[311326676,1705063843107,-540.71,0.00022739,2]
[311326679,1705063843117,-500.0,0.00022739,2]
[311326682,1705063843125,-500.0,0.00022739,2]
[311326686,1705063843135,-1000.38,0.00022739,2]
[311326687,1705063843144,-166.666666,0.00022944,2]
[311326692,1705063843154,-2093.76186828,0.00023,2]
[311326696,1705063843163,-9924.74397112,0.00023,2]
[311326699,1705063843172,-500.0,0.00023013,2]
[311326700,1705063843183,-500.0,0.00023013,2]
[311326702,1705063843193,-534.11,0.00023013,2]
[311326704,1705063843202,-500.0,0.00023013,2]
[311326707,1705063843212,-556.05540534,0.00023013,2]
[311326709,1705063843221,-836.47,0.00023013,2]
[311326711,1705063843235,-500.0,0.00023013,2]
[311326713,1705063843244,-500.0,0.00023013,2]
[311326715,1705063843253,-571.39050243,0.00023013,2]
[311326717,1705063843262,-500.0,0.00023013,2]
[311326719,1705063843272,-500.0,0.00023013,2]
[311326721,1705063843280,-500.0,0.00023013,2]
[311326723,1705063843289,-500.0,0.00023013,2]
[311326725,1705063843298,-500.0,0.00023013,2]
[311326727,1705063843308,-1691.91,0.00023013,2]
[311326729,1705063843316,-500.0,0.00023013,2]
[311326731,1705063843326,-500.0,0.00023013,2]
[311326733,1705063843335,-611.21842756,0.00023013,2]
[311326735,1705063843344,-500.0,0.00023013,2]
[311326737,1705063843353,-8652.42,0.00023013,2]
[311326739,1705063843362,-4366.37,0.00023013,2]
[311326741,1705063843371,-500.0,0.00023013,2]
[311326744,1705063843395,-500.0,0.00023013,2]
[311326746,1705063843405,-1807.55,0.00023013,2]
[311326748,1705063843414,-502.04857089,0.00023013,2]
[311326750,1705063843424,-500.0,0.00023013,2]
[311326753,1705063843433,-570.24,0.00023013,2]
[311326754,1705063843443,-500.0,0.00023013,2]
[311326757,1705063843452,-500.0,0.00023013,2]
[311326759,1705063843462,-500.0,0.00023013,2]
[311326761,1705063843471,-2475.61,0.00023013,2]
[311326763,1705063843480,-7451.88,0.00023013,2]
[311326765,1705063843490,-500.0,0.00023013,2]
[311326767,1705063843500,-500.0,0.00023013,2]
[311326769,1705063843509,-1486.41,0.00023013,2]
[311326771,1705063843518,-637.16,0.00023013,2]
[311326773,1705063843528,-540.71,0.00023013,2]
[311326775,1705063843537,-503.44599568,0.00023013,2]
[311326777,1705063843547,-524.78685357,0.00023013,2]
[311326779,1705063843557,-1000.38,0.00023013,2]
[311326781,1705063843567,-253.0,0.00023287,2]
[311326783,1705063843576,-500.0,0.00023287,2]
[311326785,1705063843585,-534.11,0.00023287,2]
[311326787,1705063843594,-500.0,0.00023287,2]
[311326789,1705063843604,-836.47,0.00023287,2]
[311326791,1705063843614,-405.65053737,0.00023287,2]
[311326793,1705063843623,-500.0,0.00023287,2]
[311326795,1705063843633,-500.0,0.00023287,2]
[311326797,1705063843642,-500.0,0.00023287,2]
[311326799,1705063843651,-500.0,0.00023287,2]
[311326801,1705063843661,-500.0,0.00023287,2]
[311326803,1705063843670,-500.0,0.00023287,2]
[311326805,1705063843679,-1691.91,0.00023287,2]
[311326807,1705063843689,-500.0,0.00023287,2]
[311326809,1705063843698,-573.43232172,0.00023287,2]
[311326811,1705063843707,-510.04611867,0.00023287,2]
[311326813,1705063843717,-8652.42,0.00023287,2]
[311326815,1705063843726,-4366.37,0.00023287,2]
[311326817,1705063843736,-500.0,0.00023287,2]
[311326819,1705063843745,-505.55393993,0.00023287,2]
[311326822,1705063843755,-1807.55,0.00023287,2]
[311326824,1705063843764,-500.0,0.00023287,2]
[311326826,1705063843774,-570.24,0.00023287,2]
[311326828,1705063843784,-500.0,0.00023287,2]
[311326830,1705063843792,-500.0,0.00023287,2]
[311326844,1705063843918,-500.0,0.00023287,2]
[311326846,1705063843928,-2475.61,0.00023287,2]
[311326848,1705063843938,-7451.88,0.00023287,2]
[311326850,1705063843946,-500.0,0.00023287,2]
[311326852,1705063843956,-500.0,0.00023287,2]
[311326854,1705063843966,-1486.41,0.00023287,2]
[311326856,1705063843975,-637.16,0.00023287,2]
[311326858,1705063843984,-540.71,0.00023287,2]
[311326860,1705063843993,-1000.38,0.00023287,2]
[311326863,1705063844002,-166.666666,0.00023456,2]
[311326865,1705063844011,-500.0,0.00023561,2]
[311326867,1705063844021,-534.11,0.00023561,2]
[311326869,1705063844030,-500.0,0.00023561,2]
[311326870,1705063844039,-836.47,0.00023561,2]
[311326873,1705063844048,-500.0,0.00023561,2]
[311326874,1705063844057,-500.0,0.00023561,2]
[311326876,1705063844066,-500.0,0.00023561,2]
[311326879,1705063844076,-500.0,0.00023561,2]
[311326880,1705063844085,-500.0,0.00023561,2]
[311326882,1705063844094,-500.0,0.00023561,2]
[311326884,1705063844103,-1691.91,0.00023561,2]
[311326886,1705063844114,-500.0,0.00023561,2]
[311326889,1705063844126,-8652.42,0.00023561,2]
[311326891,1705063844135,-500.0,0.00023561,2]
[311326892,1705063844144,-4366.37,0.00023561,2]
[311326894,1705063844153,-1807.55,0.00023561,2]
[311326896,1705063844164,-500.0,0.00023561,2]
[311326898,1705063844174,-570.24,0.00023561,2]
[311326900,1705063844183,-500.0,0.00023561,2]
[311326902,1705063844192,-500.0,0.00023561,2]
[311326904,1705063844202,-500.0,0.00023561,2]
[311326906,1705063844212,-2475.61,0.00023561,2]
[311326908,1705063844221,-7451.88,0.00023561,2]
[311326910,1705063844230,-500.0,0.00023561,2]
[311326912,1705063844239,-596.81,0.00023561,2]
[311326914,1705063844249,-1486.41,0.00023561,2]
[311326916,1705063844258,-637.16,0.00023561,2]
[311326918,1705063844267,-540.71,0.00023561,2]
[311326920,1705063844276,-1000.38,0.00023561,2]
[311326922,1705063844285,-500.0,0.00023835,2]
[311326924,1705063844295,-534.11,0.00023835,2]
[311326926,1705063844304,-500.0,0.00023835,2]
[311326928,1705063844313,-836.47,0.00023835,2]
[311326930,1705063844323,-500.0,0.00023835,2]
[311326932,1705063844333,-549.78961638,0.00023835,2]
[311326933,1705063844342,-500.0,0.00023835,2]
[311326935,1705063844352,-500.0,0.00023835,2]
[311326937,1705063844361,-500.0,0.00023835,2]
[311326939,1705063844371,-500.0,0.00023835,2]
[311326941,1705063844380,-1691.91,0.00023835,2]
[311326943,1705063844390,-500.0,0.00023835,2]
[311326945,1705063844399,-8652.42,0.00023835,2]
[311326947,1705063844409,-500.0,0.00023835,2]
[311326949,1705063844418,-4366.37,0.00023835,2]
[311326951,1705063844427,-1807.55,0.00023835,2]
[311326953,1705063844436,-500.0,0.00023835,2]
[311326955,1705063844445,-570.24,0.00023835,2]
[311326957,1705063844454,-500.0,0.00023835,2]
[311326959,1705063844467,-500.0,0.00023835,2]
[311326961,1705063844477,-446.9314126,0.00023835,2]
[311326963,1705063844486,-2475.61,0.00023835,2]
[311326965,1705063844495,-7451.88,0.00023835,2]
[311326967,1705063844504,-500.0,0.00023835,2]
[311326969,1705063844516,-1486.41,0.00023835,2]
[311326971,1705063844525,-637.16,0.00023835,2]
[311326973,1705063844534,-540.71,0.00023835,2]
[311326975,1705063844543,-166.666666,0.00023969,2]
[311326976,1705063844553,-4005.78937176,0.00024,2]
[311326978,1705063844562,-614.24237866,0.00024,2]
[311326981,1705063844571,-1822.38176649,0.00024,2]
[311326982,1705063844581,-300.0,0.00024,2]
[311326984,1705063844590,-2080.28320628,0.00024,2]
[311326986,1705063844600,-155.0294556,0.00024,2]
[311326988,1705063844609,-500.0,0.00024109,2]
[311326990,1705063844619,-534.11,0.00024109,2]
[311326992,1705063844627,-500.0,0.00024109,2]
[311326994,1705063844637,-836.47,0.00024109,2]
[311326996,1705063844648,-429.59385075,0.00024109,2]
[311326998,1705063844658,-500.0,0.00024109,2]
[311327000,1705063844667,-500.0,0.00024109,2]
[311327002,1705063844676,-531.64950814,0.00024109,2]
[311327004,1705063844686,-500.0,0.00024109,2]
[311327006,1705063844695,-1691.91,0.00024109,2]
[311327008,1705063844704,-500.0,0.00024109,2]
[311327010,1705063844718,-8652.42,0.00024109,2]
[311327012,1705063844727,-500.0,0.00024109,2]
[311327014,1705063844737,-4366.37,0.00024109,2]
[311327016,1705063844748,-1807.55,0.00024109,2]
[311327018,1705063844757,-500.0,0.00024109,2]
[311327020,1705063844767,-570.24,0.00024109,2]
[311327022,1705063844777,-500.0,0.00024109,2]
[311327024,1705063844786,-500.0,0.00024109,2]
[311327026,1705063844795,-2475.61,0.00024109,2]
[311327028,1705063844805,-7451.88,0.00024109,2]
[311327029,1705063844814,-500.0,0.00024109,2]
[311327031,1705063844823,-1486.41,0.00024109,2]
[311327033,1705063844832,-637.16,0.00024109,2]
[311327035,1705063844842,-540.71,0.00024109,2]
[311327037,1705063844852,-353.42747819,0.00024201,2]
[311327039,1705063844861,-294.75959814,0.00024382,2]
[311327041,1705063844871,-500.0,0.00024383,2]
[311327043,1705063844880,-534.11,0.00024383,2]
[311327045,1705063844889,-500.0,0.00024383,2]
[311327047,1705063844898,-836.47,0.00024383,2]
[311327049,1705063844907,-500.0,0.00024383,2]
[311327051,1705063844916,-500.0,0.00024383,2]
[311327053,1705063844925,-500.0,0.00024383,2]
[311327055,1705063844935,-1691.91,0.00024383,2]
[311327057,1705063844943,-500.0,0.00024383,2]
[311327059,1705063844952,-8652.42,0.00024383,2]
[311327061,1705063844964,-500.0,0.00024383,2]
[311327063,1705063844973,-4366.37,0.00024383,2]
[311327065,1705063844982,-1807.55,0.00024383,2]
[311327067,1705063844992,-500.0,0.00024383,2]
[311327069,1705063845001,-570.24,0.00024383,2]
[311327071,1705063845010,-391.85117578,0.00024383,2]
[311327073,1705063845018,-500.0,0.00024383,2]
[311327075,1705063845027,-2475.61,0.00024383,2]
[311327077,1705063845035,-7451.88,0.00024383,2]
[311327079,1705063845044,-500.0,0.00024383,2]
[311327081,1705063845053,-1486.41,0.00024383,2]
[311327082,1705063845062,-637.16,0.00024383,2]
[311327084,1705063845071,-540.71,0.00024383,2]
[311327087,1705063845081,-166.666666,0.00024482,2]
[311327088,1705063845090,-151.0,0.00024536,2]
[311327090,1705063845099,-500.0,0.00024657,2]
[311327092,1705063845108,-534.11,0.00024657,2]
[311327094,1705063845117,-500.0,0.00024657,2]
[311327096,1705063845126,-836.47,0.00024657,2]
[311327098,1705063845136,-500.0,0.00024657,2]
[311327100,1705063845144,-500.0,0.00024657,2]
[311327102,1705063845154,-500.0,0.00024657,2]
[311327104,1705063845163,-1691.91,0.00024657,2]
[311327106,1705063845172,-500.0,0.00024657,2]
[311327108,1705063845181,-8652.42,0.00024657,2]
[311327110,1705063845190,-500.0,0.00024657,2]
[311327112,1705063845198,-4366.37,0.00024657,2]
[311327114,1705063845207,-1807.55,0.00024657,2]
[311327116,1705063845218,-500.0,0.00024657,2]
[311327118,1705063845227,-570.24,0.00024657,2]
[311327120,1705063845237,-500.0,0.00024657,2]
[311327122,1705063845245,-2475.61,0.00024657,2]
[311327124,1705063845255,-7451.88,0.00024657,2]
[311327126,1705063845264,-500.0,0.00024657,2]
[311327128,1705063845273,-1486.41,0.00024657,2]
[311327130,1705063845283,-637.16,0.00024657,2]
[311327131,1705063845292,-540.71,0.00024657,2]
[311327133,1705063845302,-500.0,0.00024931,2]
[311327135,1705063845311,-534.11,0.00024931,2]
[311327137,1705063845320,-500.0,0.00024931,2]
[311327139,1705063845330,-836.47,0.00024931,2]
[311327141,1705063845339,-500.0,0.00024931,2]
[311327143,1705063845348,-500.0,0.00024931,2]
[311327145,1705063845358,-500.0,0.00024931,2]
[311327147,1705063845367,-1691.91,0.00024931,2]
[311327149,1705063845376,-500.0,0.00024931,2]
[311327151,1705063845385,-8652.42,0.00024931,2]
[311327153,1705063845394,-500.0,0.00024931,2]
[311327155,1705063845404,-4366.37,0.00024931,2]
[311327157,1705063845413,-1807.55,0.00024931,2]
[311327159,1705063845423,-500.0,0.00024931,2]
[311327161,1705063845432,-570.24,0.00024931,2]
[311327163,1705063845441,-500.0,0.00024931,2]
[311327165,1705063845450,-2475.61,0.00024931,2]
[311327167,1705063845462,-6915.0329514,0.00024931,2]
[311327170,1705063845483,-536.8470486,0.00024931,2]
[311327172,1705063845493,-500.0,0.00024931,2]
[311327174,1705063845502,-1486.41,0.00024931,2]
[311327176,1705063845511,-637.16,0.00024931,2]
[311327178,1705063845521,-540.71,0.00024931,2]
[311327180,1705063845530,-155.0294556,0.00025,2]
[311327181,1705063845539,-293.81485461,0.00025,2]
[311327183,1705063845549,-630.56557708,0.00025,2]
[311327185,1705063845558,-4712.57883465,0.00025,2]
[311327187,1705063845568,-309.96908058,0.00025,2]
[311327189,1705063845577,-399.76467176,0.00025205,2]
[311327191,1705063845588,-100.23532824,0.00025205,2]
[311327193,1705063845597,-399.76467176,0.00025205,2]
[311327196,1705063845609,-134.34532824,0.00025205,2]
[311327198,1705063845618,-500.0,0.00025205,2]
[311327200,1705063845626,-836.47,0.00025205,2]
[311327201,1705063845635,-500.0,0.00025205,2]
[311327203,1705063845644,-500.0,0.00025205,2]
[311327205,1705063845653,-500.0,0.00025205,2]
[311327207,1705063845662,-1691.91,0.00025205,2]
[311327209,1705063845671,-500.0,0.00025205,2]
[311327211,1705063845680,-8652.42,0.00025205,2]
[311327213,1705063845689,-500.0,0.00025205,2]
[311327215,1705063845698,-4366.37,0.00025205,2]
[311327217,1705063845707,-1807.55,0.00025205,2]
[311327219,1705063845720,-500.0,0.00025205,2]
[311327221,1705063845728,-570.24,0.00025205,2]
[311327223,1705063845738,-500.0,0.00025205,2]
[311327225,1705063845746,-1007.71232763,0.00025205,2]
[311327227,1705063845758,-1467.89767237,0.00025205,2]
[311327229,1705063845767,-7451.88,0.00025205,2]
[311327231,1705063845776,-500.0,0.00025205,2]
[311327233,1705063845786,-1486.41,0.00025205,2]
[311327235,1705063845795,-637.16,0.00025205,2]
[311327237,1705063845804,-540.71,0.00025205,2]
[311327239,1705063845814,-500.0,0.00025479,2]
[311327241,1705063845822,-282.43055629,0.00025479,2]
[311327243,1705063845834,-251.67944371,0.00025479,2]
[311327245,1705063845843,-500.0,0.00025479,2]
[311327247,1705063845852,-836.47,0.00025479,2]
[311327249,1705063845862,-500.0,0.00025479,2]
[311327251,1705063845871,-500.0,0.00025479,2]
[311327253,1705063845880,-500.0,0.00025479,2]
[311327255,1705063845889,-1691.91,0.00025479,2]
[311327257,1705063845898,-498.4507786,0.00025479,2]
[311327259,1705063845907,-2829.98703012,0.00025479,2]
[311327298,1705063846243,-685.25000075,0.00021906,3]
[311327301,1705063846255,-306.94892963,0.00021906,3]
[311327305,1705063846266,-3333.24106962,0.00021906,3]
[311327307,1705063846276,-500.0,0.00021917,2]
[311327309,1705063846285,-500.0,0.00021917,2]
[311327311,1705063846295,-500.0,0.00021917,2]
[311327314,1705063846305,-503.53907948,0.00022191,2]
[311327317,1705063846313,-500.0,0.00022191,2]
[311327318,1705063846323,-500.0,0.00022465,2]
[311327319,1705063846332,-500.0,0.00022739,2]
[311327320,1705063846341,-411.87,0.00023013,2]
[311327321,1705063846350,-44.3498523,0.00023835,2]
[311327322,1705063846362,-333.344,0.00023835,2]
[311327323,1705063846374,-622.6861477,0.00023835,2]
[311327324,1705063846383,-580.6438623,0.00024109,2]
[311327325,1705063846394,-419.7361377,0.00024109,2]
[311327326,1705063846404,-1000.38,0.00024383,2]
[311327327,1705063846413,-1000.38,0.00024657,2]
[311327328,1705063846422,-1000.38,0.00024931,2]
[311327329,1705063846431,-1000.38,0.00025205,2]
[311327330,1705063846441,-8.43310799,0.00025479,2]
[311327331,1705063846452,-900.9316923,0.00025479,2]
[311327332,1705063846465,-4913.06816959,0.00025479,2]
[311327334,1705063846475,-500.0,0.00025479,2]
[311327335,1705063846484,-4366.37,0.00025479,2]
[311327337,1705063846494,-1807.55,0.00025479,2]
[311327339,1705063846502,-405.92877445,0.00025479,2]
[311327342,1705063846522,-94.07122555,0.00025479,2]
[311327344,1705063846531,-529.37285846,0.00025479,2]
[311327346,1705063846543,-40.86714154,0.00025479,2]
[311327348,1705063846552,-225.77836394,0.00025479,2]
[311327350,1705063846561,-1571.31112728,0.00025479,2]
[311327352,1705063846573,-904.29887272,0.00025479,2]
[311327354,1705063846582,-1432.86032107,0.00025479,2]
[311327379,1705063846811,-155.1247762,0.00021916,2]
[311327381,1705063846821,-175.33938275,0.00021917,2]
[311327383,1705063846830,-500.0,0.00021917,2]
[311327385,1705063846839,-500.0,0.00021917,2]
[311327387,1705063846848,-6019.01967893,0.00025479,2]
[311327389,1705063846857,-500.0,0.00025479,2]
[311327391,1705063846866,-1486.41,0.00025479,2]
[311327393,1705063846875,-637.16,0.00025479,2]
[311327396,1705063846888,-540.71,0.00025479,2]
[311327399,1705063846897,-1000.38,0.00025479,2]
[311327402,1705063846906,-159.2031486,0.00025479,2]
[311327405,1705063846916,-151.0,0.00025513,2]
[311327408,1705063846925,-687.75702701,0.000257,2]
[311327411,1705063846936,-500.0,0.00025753,2]
[311327415,1705063846946,-534.11,0.00025753,2]
[311327417,1705063846956,-500.0,0.00025753,2]
[311327420,1705063846967,-836.47,0.00025753,2]
[311327423,1705063846977,-500.0,0.00025753,2]
[311327425,1705063846986,-500.0,0.00025753,2]
[311327427,1705063846996,-636.61630232,0.00025753,2]
[311327430,1705063847005,-1691.91,0.00025753,2]
[311327433,1705063847014,-8652.42,0.00025753,2]
[311327436,1705063847025,-500.0,0.00025753,2]
[311327438,1705063847034,-4366.37,0.00025753,2]
[311327441,1705063847043,-1807.55,0.00025753,2]
[311327444,1705063847053,-500.0,0.00025753,2]
[311327447,1705063847062,-570.24,0.00025753,2]
[311327450,1705063847075,-2475.61,0.00025753,2]
[311327453,1705063847084,-7451.88,0.00025753,2]
[311327456,1705063847093,-500.0,0.00025753,2]
[311327459,1705063847102,-1486.41,0.00025753,2]
[311327462,1705063847112,-637.16,0.00025753,2]
[311327464,1705063847121,-540.71,0.00025753,2]
[311327466,1705063847130,-1000.38,0.00025753,2]
[311327468,1705063847139,-2153.62258328,0.00026,2]
[311327470,1705063847149,-500.0,0.00026027,2]
[311327472,1705063847157,-534.11,0.00026027,2]
[311327474,1705063847166,-836.47,0.00026027,2]
[311327476,1705063847175,-576.63316629,0.00026027,2]
[311327478,1705063847185,-500.0,0.00026027,2]
[311327480,1705063847194,-1691.91,0.00026027,2]
[311327482,1705063847203,-8652.42,0.00026027,2]
[311327484,1705063847213,-500.0,0.00026027,2]
[311327486,1705063847222,-4366.37,0.00026027,2]